fUST/lending_fUST_20240727
["ID","MTS","AMOUNT","RATE_DAILY","PERIOD"]
[333275770,1722015041307,-3067.07,0.00013698,2]
[333275771,1722015041317,-3067.07,0.00013698,2]
[333275772,1722015041327,-3067.07,0.00013698,2]
[333275773,1722015041338,-3067.07,0.00013698,2]
[333275774,1722015041349,-500.0,0.00013698,2]
[333275775,1722015041358,-3067.07,0.00013698,2]
[333275776,1722015041368,-3067.07,0.00013698,2]
[333275777,1722015041377,-3067.07,0.00013698,2]
[333275778,1722015041386,-3067.07,0.00013698,2]
[333275779,1722015041396,-500.0,0.00013698,2]
[333275780,1722015041405,-500.0,0.00013698,2]
[333275781,1722015041414,-501.34573133,0.00013698,2]
[333275782,1722015041424,-1519.0,0.00013698,2]
[333275783,1722015041433,-500.0,0.00013698,2]
[333275784,1722015041442,-500.0,0.00013698,2]
[333275785,1722015041452,-500.0,0.00013698,2]
[333275786,1722015041461,-500.0,0.00013698,2]
[333275787,1722015041470,-500.0,0.00013698,2]
[333275788,1722015041479,-500.0,0.00013698,2]
[333275789,1722015041488,-1877.8,0.00013698,2]
[333275790,1722015041497,-500.0,0.00013698,2]
[333275791,1722015041506,-500.0,0.00013698,2]
[333275792,1722015041515,-500.0,0.00013698,2]
[333275793,1722015041524,-500.0,0.00013698,2]
[333275794,1722015041534,-500.0,0.00013698,2]
[333275795,1722015041543,-500.0,0.00013698,2]
[333275796,1722015041553,-500.0,0.00013698,2]
[333275797,1722015041562,-500.0,0.00013698,2]
[333275798,1722015041571,-500.0,0.00013698,2]
[333275799,1722015041580,-1008.59,0.00013698,2]
[333275800,1722015041589,-500.0,0.00013698,2]
[333275801,1722015041600,-760.62,0.00013698,2]
[333275802,1722015041609,-500.0,0.00013698,2]
[333275803,1722015041618,-842.41,0.00013698,2]
[333275804,1722015041627,-500.0,0.00013698,2]
[333275805,1722015041636,-5471.36,0.00013698,2]
[333275806,1722015041646,-500.0,0.00013698,2]
[333275807,1722015041656,-500.0,0.00013698,2]
[333275808,1722015041665,-396.59936613,0.00013698,2]
[333275809,1722015041674,-500.66325794,0.00013698,2]
[333275810,1722015041683,-1273.27,0.00013698,2]
[333275811,1722015041692,-500.0,0.00013698,2]
[333275812,1722015041701,-719.02,0.00013698,2]
[333275813,1722015041710,-500.0,0.00013698,2]
[333275814,1722015041720,-500.0,0.00013698,2]
[333275815,1722015041729,-500.0,0.00013698,2]
[333275816,1722015041738,-500.0,0.00013698,2]
[333275817,1722015041747,-500.0,0.00013698,2]
[333275818,1722015041756,-500.0,0.00013698,2]
[333275819,1722015041766,-500.0,0.00013698,2]
[333275820,1722015041775,-500.0,0.00013698,2]
[333275821,1722015041784,-500.0,0.00013698,2]
[333275822,1722015041793,-891.66,0.00013698,2]
[333275823,1722015041802,-500.0,0.00013698,2]
[333275824,1722015041811,-500.0,0.00013698,2]
[333275825,1722015041821,-510.65281105,0.00013698,2]
[333275826,1722015041831,-500.0,0.00013698,2]
[333275827,1722015041840,-500.0,0.00013698,2]
[333275828,1722015041850,-500.0,0.00013698,2]
[333275829,1722015041859,-500.0,0.00013698,2]
[333275830,1722015041868,-500.0,0.00013698,2]
[333275831,1722015041877,-500.0,0.00013698,2]
[333275832,1722015041887,-500.0,0.00013698,2]
[333275833,1722015041896,-500.0,0.00013698,2]
[333275834,1722015041905,-500.0,0.00013698,2]
[333275835,1722015041914,-4988.99,0.00013698,2]
[333275836,1722015041925,-500.0,0.00013698,2]
[333275837,1722015041936,-843.52,0.00013698,2]
[333275838,1722015041946,-500.0,0.00013698,2]
[333275839,1722015041956,-500.0,0.00013698,2]
[333275840,1722015041966,-500.0,0.00013698,2]
[333275841,1722015041975,-696.33,0.00013698,2]
[333275842,1722015041984,-500.0,0.00013698,2]
[333275843,1722015041993,-500.0,0.00013698,2]
[333275844,1722015042003,-1876.22,0.00013698,2]
[333275845,1722015042013,-500.0,0.00013698,2]
[333275846,1722015042026,-500.0,0.00013698,2]
[333275847,1722015042035,-1724.63,0.00013698,2]
[333275848,1722015042045,-611.84,0.00013698,2]
[333275849,1722015042055,-500.0,0.00013698,2]
[333275850,1722015042064,-1081.85,0.00013698,2]
[333275851,1722015042073,-500.0,0.00013698,2]
[333275852,1722015042089,-500.0,0.00013698,2]
[333275853,1722015042100,-500.0,0.00013698,2]
[333275854,1722015042111,-500.0,0.00013698,2]
[333275855,1722015042121,-500.0,0.00013698,2]
[333275856,1722015042133,-246.37709923,0.00013698,2]
[333275857,1722015042142,-509.45587838,0.00013698,2]
[333275858,1722015042154,-500.0,0.00013698,2]
[333275859,1722015042164,-500.0,0.00013698,2]
[333275860,1722015042174,-500.0,0.00013698,2]
[333275861,1722015042184,-868.13,0.00013698,2]
[333275862,1722015042193,-500.0,0.00013698,2]
[333275863,1722015042203,-500.0,0.00013698,2]
[333275864,1722015042212,-757.57,0.00013698,2]
[333275865,1722015042221,-500.0,0.00013698,2]
[333275866,1722015042233,-509.82,0.00013698,2]
[333275867,1722015042245,-500.0,0.00013698,2]
[333275868,1722015042256,-502.27364865,0.00013698,2]
[333275869,1722015042267,-1646.68,0.00013698,2]
[333275870,1722015042276,-500.0,0.00013698,2]
[333275871,1722015042286,-500.0,0.00013698,2]
[333275872,1722015042295,-500.0,0.00013698,2]
[333275873,1722015042304,-896.92,0.00013698,2]
[333275874,1722015042315,-507.03,0.00013698,2]
[333275875,1722015042324,-500.0,0.00013698,2]
[333275876,1722015042334,-500.0,0.00013698,2]
[333275877,1722015042343,-642.72,0.00013698,2]
[333275878,1722015042355,-534.14,0.00013698,2]
[333275879,1722015042366,-500.0,0.00013698,2]
[333275880,1722015042376,-3569.74,0.00013698,2]
[333275881,1722015042385,-500.0,0.00013698,2]
[333275882,1722015042395,-500.0,0.00013698,2]
[333275883,1722015042404,-500.0,0.00013698,2]
[333275884,1722015042414,-500.0,0.00013698,2]
[333275885,1722015042424,-634.31,0.00013698,2]
[333275886,1722015042433,-259.32795271,0.00013698,2]
[333275887,1722015042442,-500.0,0.00013698,2]
[333275888,1722015042451,-500.0,0.00013698,2]
[333275889,1722015042461,-1446.14,0.00013698,2]
[333275891,1722015042471,-509.40211668,0.00013698,2]
[333275893,1722015042480,-500.0,0.00013698,2]
[333275895,1722015042489,-558.32,0.00013698,2]
[333275896,1722015042500,-1466.16,0.00013698,2]
[333275897,1722015042511,-500.0,0.00013698,2]
[333275898,1722015042520,-515.31335447,0.00013698,2]
[333275901,1722015042530,-815.3,0.00013698,2]
[333275902,1722015042540,-3040.98,0.00013698,2]
[333275905,1722015042550,-503.19222684,0.00013698,2]
[333275906,1722015042560,-500.58453657,0.00013698,2]
[333275908,1722015042570,-500.0,0.00013698,2]
[333275910,1722015042579,-500.0,0.00013698,2]
[333275912,1722015042589,-500.0,0.00013698,2]
[333275914,1722015042599,-500.0,0.00013698,2]
[333275916,1722015042608,-500.0,0.00013698,2]
[333275918,1722015042617,-698.58,0.00013698,2]
[333275920,1722015042626,-500.0,0.00013698,2]
[333275922,1722015042636,-500.0,0.00013698,2]
[333275924,1722015042645,-820.9,0.00013698,2]
[333275925,1722015042654,-500.0,0.00013698,2]
[333275926,1722015042663,-500.0,0.00013698,2]
[333275927,1722015042673,-963.17,0.00013698,2]
[333275928,1722015042682,-383.56745157,0.00013698,2]
[333275930,1722015042691,-500.0,0.00013698,2]
[333275931,1722015042700,-763.15,0.00013698,2]
[333275933,1722015042710,-500.0,0.00013698,2]
[333275935,1722015042719,-622.23,0.00013698,2]
[333275936,1722015042728,-500.0,0.00013698,2]
[333275937,1722015042737,-500.366841,0.00013698,2]
[333275938,1722015042746,-500.0,0.00013698,2]
[333275939,1722015042756,-520.52316604,0.00013698,2]
[333275940,1722015042765,-500.0,0.00013698,2]
[333275941,1722015042774,-500.0,0.00013698,2]
[333275943,1722015042783,-500.0,0.00013698,2]
[333275944,1722015042793,-500.0,0.00013698,2]
[333275945,1722015042803,-500.0,0.00013698,2]
[333275946,1722015042812,-500.0,0.00013698,2]
[333275947,1722015042821,-1187.44,0.00013698,2]
[333275948,1722015042833,-506.44,0.00013698,2]
[333275949,1722015042843,-500.0,0.00013698,2]
[333275950,1722015042855,-500.0,0.00013698,2]
[333275951,1722015042865,-500.0,0.00013698,2]
[333275952,1722015042874,-500.0,0.00013698,2]
[333275953,1722015042883,-500.0,0.00013698,2]
[333275954,1722015042893,-500.0,0.00013698,2]
[333275955,1722015042902,-500.0,0.00013698,2]
[333275956,1722015042911,-882.9,0.00013698,2]
[333275957,1722015042920,-500.0,0.00013698,2]
[333275958,1722015042929,-500.0,0.00013698,2]
[333275959,1722015042938,-500.0,0.00013698,2]
[333275960,1722015042947,-323.97300061,0.00013698,2]
[333275961,1722015042956,-254.5393313,0.00013698,2]
[333275962,1722015042966,-500.0,0.00013698,2]
[333275963,1722015042975,-500.0,0.00013698,2]
[333275964,1722015042984,-500.0,0.00013698,2]
[333275965,1722015042993,-500.0,0.00013698,2]
[333275966,1722015043002,-585.78539414,0.00013698,2]
[333275967,1722015043012,-500.0,0.00013698,2]
[333275968,1722015043023,-500.0,0.00013698,2]
[333275969,1722015043033,-500.0,0.00013698,2]
[333275970,1722015043042,-500.0,0.00013698,2]
[333275971,1722015043052,-394.76486303,0.00013698,2]
[333275972,1722015043062,-500.0,0.00013698,2]
[333275973,1722015043072,-500.0,0.00013698,2]
[333275974,1722015043081,-378.41947162,0.00013698,2]
[333275975,1722015043091,-1757.92,0.00013698,2]
[333275976,1722015043102,-500.0,0.00013698,2]
[333275977,1722015043112,-500.0,0.00013698,2]
[333275978,1722015043122,-500.0,0.00013698,2]
[333275979,1722015043134,-500.0,0.00013698,2]
[333275980,1722015043146,-500.0,0.00013698,2]
[333275981,1722015043158,-500.0,0.00013698,2]
[333275982,1722015043169,-502.81326667,0.00013698,2]
[333275983,1722015043179,-500.0,0.00013698,2]
[333275984,1722015043188,-280.52941493,0.00013698,2]
[333275985,1722015043199,-500.0,0.00013698,2]
[333275986,1722015043208,-500.0,0.00013698,2]
[333275987,1722015043217,-500.0,0.00013698,2]
[333275988,1722015043226,-500.0,0.00013698,2]
[333275989,1722015043236,-500.0,0.00013698,2]
[333275990,1722015043245,-500.0,0.00013698,2]
[333275991,1722015043254,-208.81288163,0.00013698,2]
[333275992,1722015043263,-569.81,0.00013698,2]
[333275993,1722015043273,-500.0,0.00013698,2]
[333275994,1722015043282,-401.95116072,0.00013698,2]
[333275995,1722015043291,-336.81492018,0.00013708,2]
[333275996,1722015043301,-3216.00811152,0.000139,2]
[333275997,1722015043310,-4564.44784617,0.00013948,2]
[333275998,1722015043319,-500.0,0.00013951,2]
[333275999,1722015043329,-500.0,0.00013951,2]
[333276000,1722015043338,-500.0,0.00013951,2]
[333276001,1722015043348,-3067.07,0.00013951,2]
[333276002,1722015043358,-3067.07,0.00013951,2]
[333276003,1722015043367,-151.0,0.00013952,2]
[333276004,1722015043377,-151.0,0.00013952,2]
[333276005,1722015043386,-151.0,0.00013952,2]
[333276006,1722015043395,-151.0,0.00013952,2]
[333276007,1722015043404,-211.71623,0.00013952,2]
[333276008,1722015043413,-211.71623,0.00013952,2]
[333276009,1722015043422,-151.0,0.00013952,2]
[333276010,1722015043431,-3067.07,0.00013952,2]
[333276011,1722015043441,-500.0,0.0001396,2]
[333276012,1722015043451,-3067.07,0.0001396,2]
[333276013,1722015043461,-152.236607,0.00013961,2]
[333276014,1722015043470,-500.0,0.00013961,2]
[333276015,1722015043479,-960.188475,0.00013961,2]
[333276016,1722015043488,-801.343558,0.00013961,2]
[333276017,1722015043498,-801.343558,0.00013961,2]
[333276018,1722015043508,-500.0,0.00013961,2]
[333276019,1722015043517,-500.0,0.00013961,2]
[333276020,1722015043527,-500.0,0.00013961,2]
[333276021,1722015043537,-500.0,0.00013961,2]
[333276022,1722015043547,-500.0,0.00013961,2]
[333276023,1722015043557,-500.0,0.00013961,2]
[333276024,1722015043566,-500.0,0.00013961,2]
[333276025,1722015043575,-500.0,0.00013961,2]
[333276026,1722015043584,-239.87188297,0.00013961,2]
[333276027,1722015043594,-3067.07,0.00013961,2]
[333276028,1722015043607,-153.962868,0.00013962,2]
[333276029,1722015043616,-151.0,0.00013962,2]
[333276030,1722015043626,-151.0,0.00013962,2]
[333276031,1722015043636,-151.0,0.00013962,2]
[333276032,1722015043646,-3067.07,0.0001397,2]
[333276033,1722015043656,-3067.07,0.00013971,2]
[333276034,1722015043666,-3067.07,0.00013971,2]
[333276035,1722015043675,-3067.07,0.00013971,2]
[333276036,1722015043684,-3067.07,0.00013971,2]
[333276037,1722015043694,-3067.07,0.00013971,2]
[333276038,1722015043704,-3067.17025527,0.00013971,2]
[333276039,1722015043714,-500.0,0.00013972,2]
[333276040,1722015043723,-505.2805915,0.00013972,2]
[333276041,1722015043733,-500.0,0.00013972,2]
[333276042,1722015043742,-500.0,0.00013972,2]
[333276043,1722015043751,-220.53694482,0.00013972,2]
[333276044,1722015043761,-500.0,0.00013972,2]
[333276045,1722015043770,-231.10271594,0.00013972,2]
[333276046,1722015043779,-500.0,0.00013972,2]
[333276047,1722015043789,-500.0,0.00013972,2]
[333276048,1722015043798,-500.0,0.00013972,2]
[333276049,1722015043807,-506.34635955,0.00013972,2]
[333276050,1722015043817,-500.0,0.00013972,2]
[333276051,1722015043827,-500.0,0.00013972,2]
[333276052,1722015043837,-500.0,0.00013972,2]
[333276053,1722015043847,-500.0,0.00013972,2]
[333276054,1722015043858,-500.0,0.00013972,2]
[333276055,1722015043867,-500.0,0.00013972,2]
[333276056,1722015043877,-500.0,0.00013972,2]
[333276057,1722015044025,-506.45385332,0.00013972,2]
[333276058,1722015044035,-500.0,0.00013972,2]
[333276059,1722015044044,-151.0,0.00013972,2]
[333276060,1722015044053,-151.0,0.00013972,2]
[333276061,1722015044065,-157.204566,0.00013972,2]
[333276062,1722015044075,-157.204566,0.00013972,2]
[333276063,1722015044084,-500.0,0.00013972,2]
[333276064,1722015044094,-322.8742339,0.00013972,2]
[333276065,1722015044107,-539.82,0.00013972,2]
[333276066,1722015044116,-502.64021438,0.00013972,2]
[333276067,1722015044128,-518.31413586,0.00013972,2]
[333276068,1722015044137,-501.29,0.00013972,2]
[333276069,1722015044146,-240.57724327,0.00013972,2]
[333276070,1722015044697,-142.56602073,0.00013972,2]
[333276071,1722015044707,-500.0,0.00013972,2]
[333276072,1722015044716,-323.43397927,0.00013972,2]
[333276073,1722015044728,-176.56602073,0.00013972,2]
[333276074,1722015044737,-500.0,0.00013972,2]
[333276075,1722015044746,-383.143264,0.00013972,2]
[333276076,1722015044755,-881.59,0.00013972,2]
[333276077,1722015044765,-500.0,0.00013972,2]
[333276078,1722015044774,-500.0,0.00013972,2]
[333276079,1722015044783,-184.80927451,0.00013972,2]
[333276080,1722015044793,-500.0,0.00013972,2]
[333276081,1722015044803,-510.89486563,0.00013972,2]
[333276082,1722015044812,-392.85498164,0.00013972,2]
[333276083,1722015044823,-107.14501836,0.00013972,2]
[333276084,1722015044833,-500.0,0.00013972,2]
[333276085,1722015044842,-151.0,0.00013972,2]
[333276086,1722015044852,-500.0,0.00013972,2]
[333276087,1722015044861,-504.14963923,0.00013972,2]
[333276088,1722015044871,-500.0,0.00013972,2]
[333276089,1722015044880,-500.0,0.00013972,2]
[333276090,1722015044890,-500.0,0.00013972,2]
[333276091,1722015044899,-596.1,0.00013972,2]
[333276092,1722015044909,-500.0,0.00013972,2]
[333276093,1722015044918,-736.52,0.00013972,2]
[333276094,1722015044927,-500.0,0.00013972,2]
[333276095,1722015044937,-500.0,0.00013972,2]
[333276096,1722015044946,-500.0,0.00013972,2]
[333276097,1722015044955,-500.0,0.00013972,2]
[333276098,1722015044964,-500.0,0.00013972,2]
[333276099,1722015044974,-500.0,0.00013972,2]
[333276100,1722015044983,-500.0,0.00013972,2]
[333276101,1722015044993,-662.45,0.00013972,2]
[333276102,1722015045002,-428.81608943,0.00013972,2]
[333276103,1722015045012,-500.0,0.00013972,2]
[333276104,1722015045024,-770.49,0.00013972,2]
[333276105,1722015045034,-500.0,0.00013972,2]
[333276106,1722015045043,-500.0,0.00013972,2]
[333276107,1722015045053,-671.98,0.00013972,2]
[333276108,1722015045063,-500.0,0.00013972,2]
[333276109,1722015045073,-950.24,0.00013972,2]
[333276110,1722015045083,-728.9,0.00013972,2]
[333276111,1722015045095,-500.0,0.00013972,2]
[333276112,1722015045106,-500.0,0.00013972,2]
[333276113,1722015045116,-500.0,0.00013972,2]
[333276114,1722015045126,-500.0,0.00013972,2]
[333276115,1722015045136,-500.0,0.00013972,2]
[333276116,1722015045145,-502.6434046,0.00013972,2]
[333276117,1722015045154,-151.0,0.00013972,2]
[333276118,1722015045164,-588.29253368,0.00013972,2]
[333276119,1722015045173,-500.0,0.00013972,2]
[333276120,1722015045183,-151.0,0.00013972,2]
[333276121,1722015045193,-151.0,0.00013972,2]
[333276122,1722015045203,-960.188475,0.00013972,2]
[333276123,1722015045212,-500.0,0.00013972,2]
[333276124,1722015045222,-500.0,0.00013972,2]
[333276125,1722015045231,-801.343558,0.00013972,2]
[333276126,1722015045240,-801.343558,0.00013972,2]
[333276127,1722015045249,-500.0,0.00013972,2]
[333276128,1722015045259,-500.0,0.00013972,2]
[333276129,1722015045269,-500.0,0.00013972,2]
[333276130,1722015045278,-502.56395237,0.00013972,2]
[333276131,1722015045288,-500.0,0.00013972,2]
[333276132,1722015045298,-500.0,0.00013972,2]
[333276133,1722015045307,-500.0,0.00013972,2]
[333276134,1722015045317,-500.0,0.00013972,2]
[333276135,1722015045326,-510.24467786,0.00013972,2]
[333276136,1722015045335,-500.0,0.00013972,2]
[333276137,1722015045345,-500.0,0.00013972,2]
[333276138,1722015045356,-500.0,0.00013972,2]
[333276139,1722015045365,-540.08,0.00013972,2]
[333276140,1722015045375,-840.77,0.00013972,2]
[333276141,1722015045384,-500.0,0.00013972,2]
[333276143,1722015045394,-500.0,0.00013972,2]
[333276144,1722015045403,-616.77,0.00013972,2]
[333276145,1722015045413,-810.76,0.00013972,2]
[333276146,1722015045422,-616.32926765,0.00013972,2]
[333276147,1722015045431,-500.0,0.00013972,2]
[333276148,1722015045440,-500.0,0.00013972,2]
[333276149,1722015045450,-512.38206662,0.00013972,2]
[333276150,1722015045459,-1028.1,0.00013972,2]
[333276151,1722015045468,-500.0,0.00013972,2]
[333276152,1722015045477,-500.0,0.00013972,2]
[333276153,1722015045487,-1487.11,0.00013972,2]
[333276154,1722015045496,-500.0,0.00013972,2]
[333276155,1722015045505,-211.71623,0.00013972,2]
[333276156,1722015045514,-500.0,0.00013972,2]
[333276157,1722015045524,-211.71623,0.00013972,2]
[333276159,1722015045533,-500.0,0.00013972,2]
[333276160,1722015045542,-500.0,0.00013972,2]
[333276162,1722015045551,-500.0,0.00013972,2]
[333276165,1722015045562,-151.0,0.00013972,2]
[333276166,1722015045572,-151.0,0.00013972,2]
[333276167,1722015045581,-500.0,0.00013972,2]
[333276168,1722015045590,-151.0,0.00013972,2]
[333276169,1722015045599,-151.0,0.00013972,2]
[333276170,1722015045610,-500.0,0.00013972,2]
[333276171,1722015045619,-502.36529503,0.00013972,2]
[333276172,1722015045629,-500.0,0.00013972,2]
[333276173,1722015045639,-500.0,0.00013972,2]
[333276175,1722015045648,-516.77693941,0.00013972,2]
[333276176,1722015045657,-512.64,0.00013972,2]
[333276177,1722015045667,-500.0,0.00013972,2]
[333276178,1722015045676,-500.0,0.00013972,2]
[333276179,1722015045686,-500.0,0.00013972,2]
[333276180,1722015045696,-500.0,0.00013972,2]
[333276181,1722015045705,-500.0,0.00013972,2]
[333276182,1722015045715,-500.0,0.00013972,2]
[333276184,1722015045725,-396.72760412,0.00013972,2]
[333276185,1722015045734,-500.0,0.00013972,2]
[333276186,1722015045744,-500.0,0.00013972,2]
[333276187,1722015045753,-500.0,0.00013972,2]
[333276189,1722015045763,-550.75,0.00013972,2]
[333276190,1722015045773,-500.0,0.00013972,2]
[333276191,1722015045782,-500.0,0.00013972,2]
[333276192,1722015045791,-500.0,0.00013972,2]
[333276193,1722015045801,-504.354886,0.00013972,2]
[333276194,1722015045811,-519.81703122,0.00013972,2]
[333276195,1722015045820,-500.0,0.00013972,2]
[333276196,1722015045830,-500.0,0.00013972,2]
[333276197,1722015045840,-323.22216477,0.00013972,2]
[333276198,1722015045850,-500.0,0.00013972,2]
[333276199,1722015045860,-500.0,0.00013972,2]
[333276200,1722015045870,-542.6,0.00013972,2]
[333276201,1722015045883,-216.23443795,0.00013972,2]
[333276202,1722015045893,-507.14043006,0.00013972,2]
[333276203,1722015045904,-500.0,0.00013972,2]
[333276204,1722015045913,-151.0,0.00013972,2]
[333276205,1722015045923,-500.0,0.00013972,2]
[333276206,1722015045934,-532.16509311,0.00013972,2]
[333276207,1722015045945,-502.08201003,0.00013972,2]
[333276208,1722015045955,-500.0,0.00013972,2]
[333276209,1722015045967,-500.0,0.00013972,2]
[333276210,1722015045977,-501.11110698,0.00013972,2]
[333276211,1722015045987,-500.0,0.00013972,2]
[333276212,1722015045997,-500.0,0.00013972,2]
[333276213,1722015046006,-151.0,0.00013972,2]
[333276214,1722015046017,-151.0,0.00013972,2]
[333276215,1722015046029,-515.77249068,0.00013972,2]
[333276216,1722015046039,-151.0,0.00013972,2]
[333276217,1722015046050,-151.0,0.00013972,2]
[333276218,1722015046060,-500.0,0.00013972,2]
[333276219,1722015046071,-500.0,0.00013972,2]
[333276220,1722015046080,-1877.8,0.00013972,2]
[333276221,1722015046090,-500.0,0.00013972,2]
[333276222,1722015046100,-519.42437233,0.00013972,2]
[333276223,1722015046129,-500.0,0.00013972,2]
[333276224,1722015046139,-500.0,0.00013972,2]
[333276225,1722015046149,-482.560045,0.00013972,2]
[333276226,1722015046159,-482.560045,0.00013972,2]
[333276227,1722015046168,-482.560045,0.00013972,2]
[333276228,1722015046177,-482.560045,0.00013972,2]
[333276229,1722015046186,-151.0,0.00013972,2]
[333276230,1722015046196,-151.0,0.00013972,2]
[333276231,1722015046205,-500.0,0.00013972,2]
[333276232,1722015046215,-151.0,0.00013972,2]
[333276233,1722015046224,-1008.59,0.00013972,2]
[333276234,1722015046233,-151.0,0.00013972,2]
[333276235,1722015046243,-500.0,0.00013972,2]
[333276236,1722015046252,-760.62,0.00013972,2]
[333276237,1722015046261,-500.0,0.00013972,2]
[333276238,1722015046271,-842.41,0.00013972,2]
[333276239,1722015046280,-5471.36,0.00013972,2]
[333276240,1722015046290,-500.0,0.00013972,2]
[333276241,1722015046299,-500.0,0.00013972,2]
[333276242,1722015046308,-151.0,0.00013972,2]
[333276243,1722015046318,-151.0,0.00013972,2]
[333276244,1722015046327,-500.0,0.00013972,2]
[333276245,1722015046336,-719.02,0.00013972,2]
[333276246,1722015046346,-1273.27,0.00013972,2]
[333276247,1722015046355,-507.96421758,0.00013972,2]
[333276248,1722015046365,-500.0,0.00013972,2]
[333276249,1722015046374,-500.0,0.00013972,2]
[333276250,1722015046383,-570.38,0.00013972,2]
[333276251,1722015046392,-500.0,0.00013972,2]
[333276252,1722015046402,-891.66,0.00013972,2]
[333276253,1722015046411,-500.0,0.00013972,2]
[333276254,1722015046421,-574.78788849,0.00013972,2]
[333276255,1722015046430,-500.0,0.00013972,2]
[333276256,1722015046439,-500.0,0.00013972,2]
[333276257,1722015046449,-500.0,0.00013972,2]
[333276258,1722015046459,-500.0,0.00013972,2]
[333276259,1722015046469,-500.0,0.00013972,2]
[333276260,1722015046478,-4988.99,0.00013972,2]
[333276261,1722015046488,-500.0,0.00013972,2]
[333276262,1722015046497,-843.52,0.00013972,2]
[333276263,1722015046506,-500.0,0.00013972,2]
[333276264,1722015046515,-151.0,0.00013972,2]
[333276265,1722015046525,-151.0,0.00013972,2]
[333276266,1722015046534,-500.0,0.00013972,2]
[333276267,1722015046543,-151.0,0.00013972,2]
[333276268,1722015046553,-500.0,0.00013972,2]
[333276269,1722015046563,-1051.937681,0.00013972,2]
[333276270,1722015046572,-1051.937681,0.00013972,2]
[333276271,1722015046582,-435.17128086,0.00013972,2]
[333276272,1722015046591,-696.33,0.00013972,2]
[333276273,1722015046601,-500.0,0.00013972,2]
[333276274,1722015046610,-1051.937681,0.00013972,2]
[333276275,1722015046620,-1051.937681,0.00013972,2]
[333276276,1722015046629,-1876.22,0.00013972,2]
[333276277,1722015046639,-500.0,0.00013972,2]
[333276278,1722015046648,-500.0,0.00013972,2]
[333276279,1722015046657,-1724.63,0.00013972,2]
[333276280,1722015046667,-611.84,0.00013972,2]
[333276281,1722015046677,-500.0,0.00013972,2]
[333276282,1722015046686,-1081.85,0.00013972,2]
[333276283,1722015046696,-500.0,0.00013972,2]
[333276284,1722015046705,-500.0,0.00013972,2]
[333276285,1722015046714,-429.51,0.00013972,2]
[333276286,1722015046724,-151.0,0.00013972,2]
[333276287,1722015046734,-151.0,0.00013972,2]
[333276288,1722015046743,-248.28987,0.00013972,2]
[333276289,1722015046752,-511.09747774,0.00013972,2]
[333276290,1722015046762,-500.0,0.00013972,2]
[333276291,1722015046772,-500.0,0.00013972,2]
[333276292,1722015046781,-868.13,0.00013972,2]
[333276293,1722015046790,-500.0,0.00013972,2]
[333276297,1722015046932,-500.0,0.00013972,2]
[333276298,1722015046943,-757.57,0.00013972,2]
[333276299,1722015046952,-483.78754246,0.00013972,2]
[333276300,1722015046962,-509.82,0.00013972,2]